bitfinex/quotes_BTCUSD_20220307
["timestamp","ask_amount","ask_price","bid_price","bid_amount"]
[1646620662999,0.48903897,38109.0,38108.0,0.001]
[1646620663401,0.46467021,38109.0,38108.0,0.001]
[1646620663700,0.01416455,38108.0,38105.0,0.001]
[1646620663900,0.0533628,38106.0,38105.0,0.001]
[1646620664199,0.3800628,38106.0,38105.0,0.001]
[1646620664398,0.68147463,38106.0,38105.0,0.001]
[1646620664599,0.38147463,38106.0,38105.0,0.001]
[1646620664799,0.3931728,38106.0,38105.0,0.001]
[1646620665001,0.4036848,38106.0,38105.0,0.001]
[1646620665201,0.4299448,38106.0,38105.0,0.001]
[1646620665403,0.4194328,38106.0,38105.0,0.001]
[1646620666145,0.4063228,38106.0,38105.0,0.001]
[1646620668642,0.1859769,38102.0,38100.0,1.24651052]
[1646620668842,0.02825051,38101.0,38100.0,1.24651052]
[1646620669043,0.00155051,38101.0,38100.0,1.24651052]
[1646620669303,0.21925051,38101.0,38100.0,1.24651052]
[1646620669705,0.34451051,38101.0,38100.0,1.24651052]
[1646620669904,0.34761153,38101.0,38100.0,1.24651052]
[1646620671205,0.24761153,38101.0,38100.0,1.24651052]
[1646620672905,0.25812453,38101.0,38100.0,1.24651052]
[1646620673945,0.136773,38101.0,38100.0,1.24651052]
[1646620674143,0.136773,38101.0,38100.0,1.31336912]
[1646620674144,0.036773,38101.0,38100.0,1.31336912]
[1646620674344,0.1,38106.0,38101.0,1.21615725]
[1646620674544,0.1,38109.0,38107.0,0.06323036]
[1646620674742,0.1,38109.0,38105.0,0.21277785]
[1646620675241,0.15772551,38107.0,38105.0,0.21277785]
[1646620675443,0.20772551,38107.0,38101.0,0.06615725]
[1646620676042,0.30772551,38107.0,38101.0,0.06615725]
[1646620676243,0.1,38106.0,38101.0,0.06615725]
[1646620676444,0.1,38105.0,38101.0,0.06615725]
[1646620676904,0.1,38103.0,38101.0,0.06615725]
[1646620677706,0.09,38103.0,38101.0,0.06615725]
[1646620677904,0.1,38106.0,38101.0,0.06615725]
[1646620678304,0.1,38103.0,38101.0,0.06615725]
[1646620679906,0.01684209,38102.0,38101.0,0.06615725]
[1646620680108,0.01626118,38102.0,38101.0,0.06615725]
[1646620680307,0.01725069,38102.0,38101.0,0.06615725]
[1646620680540,0.1,38103.0,38101.0,0.06615725]
[1646620682041,0.1,38102.0,38101.0,0.06615725]
[1646620682442,0.239,38102.0,38101.0,0.27702185]
[1646620682644,0.239,38102.0,38101.0,0.06615725]
[1646620682845,0.6067,38102.0,38101.0,0.06615725]
[1646620683244,0.98654435,38102.0,38101.0,0.06615725]
[1646620683444,0.69965435,38102.0,38101.0,0.06615725]
[1646620684596,0.58654435,38102.0,38101.0,0.06615725]
[1646620684793,0.3784758,38102.0,38101.0,0.06615725]
[1646620684993,0.2784758,38102.0,38101.0,0.06615725]
[1646620685194,0.1179628,38102.0,38101.0,0.06615725]
[1646620686798,0.0177,38102.0,38101.0,0.06615725]
[1646620687000,0.1,38104.0,38101.0,0.06615725]
[1646620687798,0.1,38107.0,38103.0,0.23393862]
[1646620688043,0.1,38110.0,38108.0,0.07365985]
[1646620688243,0.139,38109.0,38108.0,0.07365985]
[1646620688643,0.24951,38109.0,38103.0,0.23393862]
[1646620688848,0.11051,38109.0,38103.0,0.23393862]
[1646620689046,0.1,38110.0,38103.0,0.23393862]
[1646620689047,0.1,38107.0,38103.0,0.23393862]
[1646620690047,0.1,38107.0,38106.0,0.27022112]
[1646620690647,0.11702214,38107.0,38106.0,0.27022112]
[1646620691149,0.02763805,38112.0,38107.0,1.15]
[1646620691353,1.27734149,38118.0,38107.0,1.15]
[1646620691354,0.025,38116.0,38107.0,1.15]
[1646620691549,0.025,38116.0,38107.0,1.44309656]
[1646620691550,0.075,38115.0,38107.0,1.44309656]
[1646620691796,0.14386809,38120.0,38107.0,1.44309656]
[1646620691797,0.0134305,38118.0,38107.0,1.44309656]
[1646620691995,0.01666365,38119.0,38113.0,0.29244708]
[1646620692196,0.01666365,38119.0,38114.0,0.06054535]
[1646620692796,0.35324887,38120.0,38114.0,0.06054535]
[1646620692797,0.01303503,38118.0,38114.0,0.06054535]
[1646620693396,0.01303503,38118.0,38114.0,0.05554535]
[1646620693596,0.3433265,38121.0,38120.0,0.06624707]
[1646620693796,0.3433265,38121.0,38120.0,0.04317572]
[1646620693999,0.4433265,38121.0,38120.0,0.04317572]
[1646620694197,0.4328195,38121.0,38120.0,0.04317572]
[1646620694399,0.3328195,38121.0,38120.0,0.04317572]
[1646620694598,0.01703063,38121.0,38113.0,0.31857708]
[1646620694998,0.1,38120.0,38113.0,0.31857708]
[1646620695198,0.1,38120.0,38113.0,0.02613]
[1646620695646,0.1,38120.0,38116.0,0.06052119]
[1646620695845,0.40026011,38120.0,38116.0,0.06052119]
[1646620696042,0.30026011,38120.0,38116.0,0.06052119]
[1646620696246,0.40026011,38120.0,38116.0,0.06052119]
[1646620697242,0.61604898,38120.0,38116.0,0.06052119]
[1646620697442,0.71604898,38120.0,38116.0,0.06052119]
[1646620698442,0.61604898,38120.0,38116.0,0.06052119]
[1646620698847,0.71604898,38120.0,38116.0,0.06052119]
[1646620699294,0.31578887,38119.0,38116.0,0.06052119]
[1646620699718,0.1,38118.0,38116.0,0.06052119]
[1646620700794,0.1,38119.0,38116.0,0.06052119]
[1646620702697,0.1,38119.0,38117.0,0.3]
[1646620703160,0.21311,38120.0,38117.0,0.3]
[1646620703560,0.36704217,38123.0,38119.0,1.15]
[1646620703764,0.26178616,38127.0,38122.0,1.15]
[1646620703966,0.00640809,38131.0,38124.0,0.07404366]
[1646620704163,0.01365405,38129.0,38125.0,0.3]
[1646620704465,0.02471207,38131.0,38125.0,0.27000001]
[1646620704663,0.010504,38131.0,38126.0,0.2001897]
[1646620704862,0.27382287,38132.0,38126.0,0.5001897]
[1646620705662,0.27382287,38132.0,38127.0,0.3]
[1646620705865,0.27382287,38132.0,38121.0,0.02613]
[1646620706667,0.1541699,38123.0,38122.0,0.07108213]
[1646620706898,0.1541699,38123.0,38112.0,0.25350719]
[1646620706899,0.1541699,38123.0,38117.0,0.3]
[1646620707296,0.1541699,38123.0,38113.0,0.3131]
[1646620707694,0.1541699,38123.0,38114.0,0.02613]
[1646620707893,0.1541699,38123.0,38121.0,0.0581496]
[1646620708494,0.1541699,38123.0,38113.0,0.3]
[1646620708695,0.1541699,38123.0,38113.0,0.02613]
[1646620709094,0.1,38121.0,38113.0,0.02613]
[1646620709317,0.1,38121.0,38110.0,0.03371]
[1646620709500,0.18044146,38116.0,38110.0,0.03371]
[1646620709698,0.2949717,38116.0,38110.0,0.03371]
[1646620709995,0.1,38115.0,38110.0,0.03371]
[1646620710394,0.1123,38117.0,38110.0,0.03371]
[1646620710643,0.1,38116.0,38112.0,0.06506554]
[1646620711043,0.0123,38117.0,38112.0,0.06506554]
[1646620711243,0.1,38118.0,38112.0,0.06506554]
[1646620711444,0.1,38117.0,38112.0,0.06506554]
[1646620711742,0.1,38118.0,38112.0,0.06506554]
[1646620712144,0.1,38117.0,38112.0,0.06506554]
[1646620712943,0.1,38117.0,38115.0,9.042e-05]
[1646620714292,0.11311,38119.0,38115.0,9.042e-05]
[1646620714494,0.21311,38119.0,38115.0,9.042e-05]
[1646620714703,0.1,38119.0,38118.0,0.22597633]
[1646620714898,0.1,38121.0,38118.0,0.52597633]
[1646620715093,0.1,38125.0,38118.0,0.52597633]
[1646620715294,0.1,38124.0,38118.0,0.52597633]
[1646620715696,0.1,38124.0,38119.0,0.19890068]
[1646620715897,0.1,38124.0,38120.0,0.3]
[1646620716098,0.010505,38126.0,38120.0,0.3]
[1646620716296,0.36787288,38132.0,38120.0,0.3]
[1646620716297,0.01311,38131.0,38129.0,0.06462195]
[1646620716496,0.01311,38131.0,38129.0,0.05815976]
[1646620716698,0.01311,38132.0,38129.0,0.05815976]
[1646620716898,0.01311,38132.0,38124.0,0.02613]
[1646620717099,0.01311,38133.0,38124.0,0.32613]
[1646620717499,0.65290004,38134.0,38124.0,0.32613]
[1646620717896,0.46787288,38134.0,38125.0,0.05747595]
[1646620718147,0.125,38135.0,38134.0,0.05285404]
[1646620718148,0.49287288,38135.0,38134.0,0.05285404]
[1646620718346,0.125,38135.0,38126.0,0.3]
[1646620718547,0.125,38135.0,38127.0,0.02613]
[1646620718945,0.125,38135.0,38131.0,0.17264673]
[1646620719146,0.1,38135.0,38131.0,0.17264673]
[1646620719347,0.1,38135.0,38130.0,0.3]
[1646620719546,0.1,38135.0,38133.0,0.06323537]
[1646620721450,0.1,38137.0,38134.0,0.3]
[1646620721649,0.1,38137.0,38133.0,0.06323537]
[1646620721905,0.1,38138.0,38133.0,0.06323537]
[1646620722105,0.11311,38142.0,38133.0,0.06323537]
[1646620722305,0.22162805,38142.0,38133.0,0.06323537]
[1646620722505,0.23578531,38142.0,38134.0,0.3]
[1646620722709,0.01366056,38141.0,38133.0,0.06323537]
[1646620723006,0.33876832,38142.0,38134.0,0.3]
[1646620723407,0.0531,38136.0,38119.0,0.2466]
[1646620723611,0.03939516,38134.0,38119.0,0.2466]
[1646620723808,0.0531,38131.0,38119.0,0.2466]
[1646620724008,0.11530538,38127.0,38118.0,0.002]
[1646620724319,0.03021408,38126.0,38118.0,0.002]
[1646620724507,0.20278404,38124.0,38120.0,0.05626971]
[1646620724706,0.21508404,38124.0,38120.0,0.05626971]
[1646620724909,0.31508404,38124.0,38118.0,0.002]
[1646620725107,0.31896086,38123.0,38118.0,0.002]
[1646620725310,0.1123,38122.0,38118.0,0.002]
[1646620725559,0.1123,38122.0,38121.0,0.18103621]
[1646620725760,0.1,38122.0,38121.0,0.18103621]
[1646620725960,0.03240176,38127.0,38122.0,0.06678912]
[1646620726159,0.23240176,38127.0,38122.0,0.06678912]
[1646620726361,0.23240176,38127.0,38121.0,0.18103621]
[1646620726762,0.2373,38127.0,38121.0,0.18103621]
[1646620727161,0.1373,38127.0,38121.0,0.18103621]
[1646620727362,0.0373,38127.0,38121.0,0.18103621]
[1646620727762,0.047806,38127.0,38121.0,0.18103621]
[1646620727964,0.047806,38127.0,38123.0,0.24236081]
[1646620727965,0.0373,38127.0,38123.0,0.24236081]
[1646620728163,0.0373,38127.0,38125.0,0.06231915]
[1646620728363,0.11903136,38126.0,38125.0,0.06231915]
[1646620728865,0.0123,38127.0,38125.0,0.22726155]
[1646620729063,0.11793589,38129.0,38125.0,0.22726155]
[1646620729501,0.025,38132.0,38128.0,0.19728987]
[1646620729709,0.56531,38138.0,38131.0,0.06175919]
[1646620729895,0.0025,38138.0,38131.0,0.06175919]
[1646620730295,0.0025,38138.0,38131.0,0.22757167]
[1646620730599,0.0025,38138.0,38134.0,0.21232494]
[1646620730794,0.1193011,38135.0,38134.0,0.21232494]
[1646620730997,0.1193011,38135.0,38132.0,0.24935111]
[1646620731196,0.0025,38138.0,38132.0,0.24935111]
[1646620732196,0.0025,38138.0,38136.0,0.20182171]
[1646620732398,0.0025,38138.0,38137.0,0.05593673]
[1646620732599,0.0025,38138.0,38137.0,0.23740271]
[1646620734141,0.0025,38138.0,38137.0,0.05593673]
[1646620737209,0.0025,38138.0,38132.0,0.17747366]
[1646620737408,0.0025,38138.0,38129.0,0.15]
[1646620738208,0.0025,38138.0,38131.0,0.20626646]
[1646620738917,0.18123385,38135.0,38127.0,0.28332576]
[1646620739109,0.3,38134.0,38126.0,0.010501]
[1646620739513,0.18123385,38135.0,38126.0,0.010501]
[1646620740108,0.3,38134.0,38126.0,0.010501]
[1646620740310,0.0138406,38133.0,38127.0,0.05601027]
[1646620740752,0.01652546,38133.0,38126.0,0.010501]
[1646620741056,0.18123385,38135.0,38126.0,0.010501]
[1646620741057,0.00640809,38132.0,38126.0,0.010501]
[1646620742455,0.01554845,38134.0,38126.0,0.010501]
[1646620743658,0.01554845,38134.0,38128.0,0.2119897]
[1646620745094,0.01054845,38134.0,38128.0,0.2119897]
[1646620745898,0.16311,38137.0,38133.0,0.07079625]
[1646620745899,0.11311,38137.0,38133.0,0.07079625]
[1646620746098,0.01311,38137.0,38134.0,0.20301049]
[1646620746300,0.0025,38138.0,38133.0,0.07079625]
[1646620746900,0.0025,38138.0,38134.0,0.48304374]
[1646620747396,0.0025,38138.0,38135.0,0.18342412]
[1646620748446,0.0025,38138.0,38136.0,0.3]
[1646620749047,0.0025,38138.0,38137.0,0.22401735]
[1646620749648,0.0025,38138.0,38136.0,0.3]
[1646620749852,0.0025,38138.0,38134.0,0.48304374]
[1646620750950,0.0025,38138.0,38135.0,0.21791643]
[1646620751894,0.0025,38138.0,38134.0,0.74986899]
[1646620752297,0.0025,38138.0,38134.0,0.26682525]
[1646620752697,0.0025,38138.0,38133.0,0.07079625]
[1646620752894,0.0025,38138.0,38127.0,0.3]
[1646620752895,0.0025,38138.0,38129.0,0.18394972]
[1646620753097,0.0025,38138.0,38127.0,0.3]
[1646620753297,0.19121379,38133.0,38126.0,0.7934]
[1646620753496,0.19121379,38133.0,38125.0,0.3]
[1646620754098,0.19121379,38133.0,38125.0,0.52225333]
[1646620754298,0.02316373,38132.0,38119.0,0.3]
[1646620754500,0.0086,38132.0,38119.0,0.3]
[1646620754798,0.0086,38132.0,38118.0,0.012503]
[1646620754799,0.01682842,38130.0,38118.0,0.012503]
[1646620754998,0.1086,38129.0,38118.0,0.012503]
[1646620755198,0.1531,38127.0,38118.0,0.012503]
[1646620755398,0.1665941,38121.0,38118.0,0.012503]
[1646620755653,0.024772,38120.0,38118.0,0.002]
[1646620756153,0.10957141,38119.0,38118.0,0.002]
[1646620756353,0.21817141,38119.0,38118.0,0.002]
[1646620757556,0.52561495,38119.0,38118.0,0.002]
[1646620757755,0.68872495,38119.0,38118.0,0.002]
[1646620757956,0.7887451,38119.0,38118.0,0.002]
[1646620758255,0.8418451,38119.0,38118.0,0.002]
[1646620759505,0.8523531,38119.0,38118.0,0.002]
[1646620759905,0.8418451,38119.0,38118.0,0.002]
[1646620762107,0.84183502,38119.0,38118.0,0.002]
[1646620762905,0.82872502,38119.0,38118.0,0.002]
[1646620763554,0.83923302,38119.0,38118.0,0.002]
[1646620764053,0.82872502,38119.0,38118.0,0.002]
[1646620765151,1.32872502,38119.0,38118.0,0.002]
[1646620767509,1.33923302,38119.0,38118.0,0.002]
[1646620767710,1.32872502,38119.0,38118.0,0.002]
[1646620767912,1.34183502,38119.0,38118.0,0.002]
[1646620769311,1.49183502,38119.0,38118.0,0.002]
[1646620769511,1.50043502,38119.0,38118.0,0.00180001]
[1646620769712,1.60043502,38119.0,38118.0,0.00180001]
[1646620771452,1.61094502,38119.0,38118.0,0.00180001]
[1646620771655,1.60043502,38119.0,38118.0,0.00180001]
[1646620772256,1.51036311,38119.0,38118.0,0.00180001]
[1646620772454,1.41036311,38119.0,38118.0,0.00180001]
[1646620774055,1.51036311,38119.0,38118.0,0.00180001]
[1646620774908,1.49725311,38119.0,38118.0,0.00180001]
[1646620775101,1.28628957,38119.0,38118.0,0.00180001]
[1646620775301,1.29679957,38119.0,38118.0,0.00180001]
[1646620775502,0.55,38118.0,38109.0,0.17635177]
[1646620775704,0.0531,38111.0,38109.0,0.17635177]
[1646620776003,0.11821316,38110.0,38109.0,0.17635177]
[1646620776803,0.11821172,38110.0,38109.0,0.17635177]
[1646620777101,0.0086,38110.0,38109.0,0.17635177]
[1646620777302,0.0088628,38110.0,38109.0,0.17635177]
[1646620778653,0.0088628,38110.0,38109.0,0.07635177]
[1646620779255,0.0088628,38110.0,38107.0,0.25423048]
[1646620779256,0.0193728,38110.0,38107.0,0.25423048]
[1646620779453,0.0002628,38108.0,38103.0,0.0005]
[1646620779658,0.0086,38110.0,38103.0,0.0005]
[1646620780556,0.1,38115.0,38109.0,0.18865285]
[1646620780757,0.1,38115.0,38110.0,0.3]
[1646620780959,0.2,38117.0,38115.0,0.05569591]
[1646620781158,0.1,38117.0,38116.0,0.3]
[1646620781356,0.1,38117.0,38115.0,0.05569591]
[1646620781357,0.10026275,38117.0,38115.0,0.23672353]
[1646620781556,0.00026275,38116.0,38115.0,0.18102762]
[1646620781804,0.50026275,38116.0,38115.0,0.18102762]
[1646620782203,0.50026275,38116.0,38108.0,0.3]
[1646620782403,0.1,38117.0,38108.0,0.3]
[1646620783209,0.1,38115.0,38107.0,0.20751892]
[1646620783407,0.1,38113.0,38107.0,0.20751892]
[1646620783609,0.1,38110.0,38107.0,0.20751892]
[1646620784007,0.1,38113.0,38110.0,0.07219133]
[1646620784008,0.1,38112.0,38110.0,0.07219133]
[1646620784208,0.2,38115.0,38110.0,0.34086918]
[1646620784607,0.01311,38117.0,38113.0,0.18859733]
[1646620784608,0.1,38116.0,38113.0,0.18859733]
[1646620784807,0.00026273,38114.0,38113.0,0.18859733]
[1646620786052,0.00026273,38114.0,38110.0,0.07219133]
[1646620786351,0.1,38116.0,38110.0,0.07219133]
[1646620786551,0.1,38116.0,38111.0,0.3]
[1646620786751,0.1,38116.0,38110.0,0.07219133]
[1646620786951,0.010508,38115.0,38110.0,0.07219133]
[1646620787152,0.010508,38115.0,38113.0,0.20495714]
[1646620787353,0.1,38116.0,38113.0,0.20495714]
[1646620787354,0.00026273,38114.0,38113.0,0.20495714]
[1646620788252,0.00026273,38114.0,38110.0,0.07219133]
[1646620788451,0.1,38116.0,38110.0,0.07219133]
[1646620789299,0.1,38116.0,38111.0,0.17068169]
[1646620790304,0.110509,38116.0,38111.0,0.17068169]
[1646620790500,0.1,38116.0,38111.0,0.17068169]
[1646620790900,0.1,38116.0,38112.0,0.26863048]
[1646620791903,0.1,38116.0,38111.0,0.17068169]
[1646620792403,0.1,38116.0,38110.0,0.07219133]
[1646620793449,0.1,38116.0,38110.0,0.24798953]
[1646620794249,0.110509,38116.0,38110.0,0.24798953]
[1646620794550,0.1,38116.0,38110.0,0.24798953]
[1646620795752,0.12613,38116.0,38104.0,0.3]
[1646620795952,0.1,38111.0,38103.0,0.0005]
[1646620796152,0.1,38110.0,38103.0,0.0005]
[1646620796453,0.1,38110.0,38103.0,0.3005]
[1646620796895,0.1,38110.0,38108.0,0.22494088]
[1646620797100,0.1,38110.0,38109.0,0.0529504]
[1646620797101,0.1086,38110.0,38109.0,0.0529504]
[1646620797898,0.1086,38110.0,38108.0,0.22494088]
[1646620798298,0.0086,38110.0,38108.0,0.22494088]
[1646620798697,0.0086,38110.0,38106.0,0.2206816]
[1646620799199,0.1086,38110.0,38108.0,0.05620219]
[1646620800199,0.1,38111.0,38108.0,0.05620219]
[1646620800651,0.1,38110.0,38108.0,0.05620219]
[1646620802552,0.1,38112.0,38108.0,0.05620219]
[1646620802954,0.1086,38113.0,38108.0,0.05611323]
[1646620802955,0.1,38110.0,38108.0,0.05611323]
[1646620805401,0.1,38110.0,38108.0,0.0500774]
[1646620805605,0.1,38110.0,38107.0,0.17216212]
[1646620805804,0.1,38110.0,38103.0,0.0005]
[1646620806005,0.11051,38110.0,38103.0,0.0005]
[1646620806206,0.1,38110.0,38103.0,0.0005]
[1646620806405,0.3,38109.0,38103.0,0.0005]
[1646620806604,0.0531,38107.0,38103.0,0.0005]
[1646620806803,0.1,38104.0,38103.0,0.0005]
[1646620807004,0.1086,38104.0,38103.0,0.0005]
[1646620807203,0.11384514,38104.0,38103.0,0.0005]
[1646620807405,0.24784514,38104.0,38103.0,0.0005]
[1646620808452,0.24784514,38104.0,38101.0,0.06273425]
[1646620808653,0.134,38102.0,38101.0,0.06273425]
[1646620808853,0.1426,38102.0,38101.0,0.06273425]
[1646620809851,0.11821316,38102.0,38101.0,0.06273425]
[1646620810150,0.2234583,38102.0,38101.0,0.06273425]
[1646620810351,0.31821316,38102.0,38101.0,0.06273425]
[1646620811552,0.21821316,38102.0,38101.0,0.06273425]
[1646620813007,0.21829049,38102.0,38101.0,0.06273425]
[1646620814208,0.21829049,38102.0,38101.0,0.06558115]
[1646620814607,0.21829049,38102.0,38101.0,0.0028469]
[1646620815210,0.15398375,38102.0,38101.0,0.0028469]
[1646620817855,0.07250381,38102.0,38101.0,0.0028469]
[1646620818055,0.07250381,38102.0,38101.0,0.3028469]
[1646620818056,0.02719739,38102.0,38101.0,0.3028469]
[1646620818260,7.733e-05,38102.0,38101.0,0.3028469]
[1646620818456,7.733e-05,38102.0,38101.0,0.0028469]
[1646620818761,7.733e-05,38102.0,38101.0,0.30213517]
[1646620821010,7.733e-05,38102.0,38101.0,0.00213517]
[1646620821609,7.733e-05,38102.0,38101.0,0.30213517]
[1646620823059,7.733e-05,38102.0,38101.0,0.30224547]
[1646620823461,7.33e-06,38102.0,38101.0,0.32837547]
[1646620823662,0.1,38114.0,38102.0,5.267e-05]
[1646620823866,0.65491709,38119.0,38111.0,0.06122834]
[1646620823867,0.5,38113.0,38111.0,0.06122834]
[1646620824068,0.5,38113.0,38112.0,0.3]
[1646620824265,0.54661709,38127.0,38125.0,0.05269767]
[1646620824464,0.14711,38126.0,38125.0,0.05269767]
[1646620824665,0.11311,38126.0,38120.0,0.20733791]
[1646620824964,0.6,38125.0,38120.0,0.20733791]
[1646620825564,0.1,38125.0,38120.0,0.20733791]
[1646620826165,0.1,38125.0,38121.0,0.06673339]
[1646620826572,0.1,38125.0,38121.0,0.36673339]
[1646620827707,0.82066904,38132.0,38121.0,0.36673339]
[1646620827708,0.1,38129.0,38121.0,0.36673339]
[1646620829706,0.110505,38129.0,38121.0,0.36673339]
[1646620830210,0.010505,38129.0,38124.0,0.15]
[1646620830411,0.010505,38129.0,38125.0,0.3]
[1646620830669,0.015,38135.0,38126.0,0.02613]
[1646620830866,0.015,38135.0,38127.0,0.05285103]
[1646620831068,0.015,38135.0,38133.0,0.24183261]
[1646620831266,0.015,38135.0,38134.0,0.07250771]
[1646620832569,0.015,38135.0,38127.0,0.3]
[1646620832771,0.015,38135.0,38127.0,0.05]
[1646620833069,6.843e-05,38128.0,38125.0,0.3]
[1646620833769,6.843e-05,38128.0,38126.0,0.32071803]
[1646620833971,0.09506843,38136.0,38133.0,0.06128542]
[1646620834170,0.22309128,38137.0,38133.0,0.06128542]
[1646620834607,0.1,38136.0,38133.0,0.06128542]
[1646620835005,0.1,38136.0,38129.0,0.21802714]
[1646620835407,0.21602859,38137.0,38130.0,0.3]
[1646620835609,0.21602859,38137.0,38129.0,0.21802714]
[1646620836006,0.21602859,38137.0,38131.0,0.05814302]
[1646620838057,0.21602859,38137.0,38129.0,0.21802714]
[1646620838257,0.21602859,38137.0,38127.0,0.3]
[1646620838460,0.21602859,38137.0,38127.0,9.397e-05]
[1646620838860,0.21602859,38137.0,38127.0,0.30009397]
[1646620839057,0.21602859,38137.0,38128.0,0.06351744]
[1646620839258,0.21602859,38137.0,38129.0,0.22766112]
[1646620839660,0.21602859,38137.0,38129.0,0.52766112]
[1646620840059,0.21602859,38137.0,38134.0,0.05919967]
[1646620840259,0.0025,38138.0,38134.0,0.05919967]
[1646620841160,0.0025,38138.0,38137.0,0.17186845]
[1646620841360,0.0025,38138.0,38134.0,0.05919967]
[1646620842208,0.0975,38142.0,38134.0,0.05919967]
[1646620842605,0.35541,38144.0,38134.0,0.05919967]
[1646620842805,0.1,38142.0,38134.0,0.05919967]
[1646620843105,7.428e-05,38137.0,38134.0,0.05919967]
[1646620843304,7.428e-05,38137.0,38133.0,0.2147566]
[1646620843506,7.428e-05,38137.0,38133.0,0.05]
[1646620843707,7.428e-05,38137.0,38129.0,0.07622933]
[1646620843905,7.428e-05,38137.0,38129.0,0.02622933]
[1646620844413,7.428e-05,38137.0,38133.0,0.21162944]
[1646620844605,7.428e-05,38137.0,38134.0,0.07318248]
[1646620849191,7.428e-05,38137.0,38131.0,0.00010475]
[1646620850610,7.428e-05,38137.0,38132.0,0.05600714]
[1646620851011,7.428e-05,38137.0,38131.0,0.00010475]
[1646620852717,7.428e-05,38137.0,38131.0,0.06889713]
[1646620852911,7.428e-05,38137.0,38131.0,0.06879238]
[1646620857905,7.428e-05,38137.0,38131.0,0.05879238]
[1646620858406,7.428e-05,38137.0,38133.0,0.00010441]
[1646620860110,7.428e-05,38137.0,38135.0,0.1905556]
[1646620862354,7.428e-05,38137.0,38133.0,0.00010441]
[1646620862957,7.428e-05,38137.0,38132.0,0.6798977]
[1646620864609,0.2028247,38133.0,38132.0,0.6798977]
[1646620864809,0.2553247,38133.0,38132.0,0.6798977]
[1646620865614,0.3893247,38133.0,38132.0,0.6798977]
[1646620865809,0.49639072,38133.0,38132.0,0.6798977]
[1646620866412,0.29356602,38133.0,38132.0,0.6798977]
[1646620867716,0.45557,38133.0,38132.0,0.6798977]
[1646620868159,0.50867,38133.0,38132.0,0.67979363]
[1646620868356,1.00367,38133.0,38132.0,0.67979363]
[1646620868756,1.014175,38133.0,38132.0,0.67979363]
[1646620868954,0.95557,38133.0,38132.0,0.67979363]
[1646620869154,0.65557,38133.0,38132.0,0.67979363]
[1646620870154,0.65057,38133.0,38132.0,0.67979363]
[1646620870760,0.35456602,38133.0,38132.0,0.67979363]
[1646620870957,0.36409714,38133.0,38132.0,0.67979363]
[1646620871360,0.25703112,38133.0,38132.0,0.67979363]
[1646620871563,0.0475,38133.0,38132.0,0.67979363]
[1646620872013,0.01311,38136.0,38132.0,0.67979363]
[1646620872607,0.0525,38135.0,38132.0,0.67979363]
[1646620873309,8.339e-05,38134.0,38132.0,0.67991941]
[1646620873610,3.39e-06,38134.0,38133.0,0.3]
[1646620875212,3.39e-06,38134.0,38133.0,0.32613]
[1646620878280,0.1551207,38147.0,38139.0,0.25527798]
[1646620878481,0.1551207,38147.0,38145.0,0.06672694]
[1646620878880,0.44767839,38148.0,38145.0,0.06672694]
[1646620879912,0.44767839,38148.0,38146.0,0.3]
[1646620880115,7.839e-05,38148.0,38146.0,0.3]
[1646620881215,8.39e-06,38148.0,38146.0,0.3]
[1646620881815,8.39e-06,38148.0,38146.0,0.35]
[1646620882017,8.39e-06,38148.0,38147.0,0.3]
[1646620883071,0.17164624,38156.0,38147.0,0.3]
[1646620883272,0.17164624,38156.0,38150.0,0.25294995]
[1646620883873,0.15,38157.0,38153.0,0.06424549]
[1646620884474,0.010498,38157.0,38153.0,0.06424549]
[1646620884676,7.107e-05,38159.0,38153.0,0.06424549]
[1646620884874,0.15,38158.0,38151.0,0.3]
[1646620885174,0.18996265,38154.0,38148.0,0.05]
[1646620885577,0.18996265,38154.0,38141.0,0.02613]
[1646620885976,0.15,38157.0,38148.0,0.05764007]
[1646620886184,0.15007107,38159.0,38154.0,0.05370362]
[1646620886373,0.15007107,38159.0,38149.0,0.05]
[1646620886577,0.15007107,38159.0,38150.0,0.295]
[1646620886805,0.15,38157.0,38150.0,0.05]
[1646620887009,7.107e-05,38159.0,38152.0,0.21081376]
[1646620887010,0.2188681,38155.0,38152.0,0.21081376]
[1646620887410,0.2188681,38155.0,38153.0,0.06027874]
[1646620887609,0.2188681,38155.0,38152.0,0.21081376]
[1646620887807,0.2188681,38155.0,38149.0,0.3]
[1646620888208,0.2188681,38155.0,38152.0,0.00013491]
[1646620890006,0.2188681,38155.0,38153.0,0.2172163]
[1646620890409,0.15006669,38157.0,38153.0,0.2172163]
[1646620891561,0.15006669,38157.0,38152.0,0.00013491]
[1646620891958,0.15006669,38157.0,38156.0,0.06385351]
[1646620892761,0.15,38157.0,38156.0,0.06385351]
[1646620893361,0.15,38157.0,38154.0,0.00013457]
[1646620893763,0.1239,38160.0,38154.0,0.00013457]
[1646620894404,0.1239,38160.0,38155.0,0.06550688]
[1646620894604,0.1239,38160.0,38157.0,0.17473569]
[1646620894811,0.1239,38160.0,38155.0,0.06550688]
[1646620895005,0.1239,38160.0,38154.0,0.00013457]
[1646620895705,0.15,38158.0,38154.0,0.00013457]
[1646620896512,0.16448456,38157.0,38154.0,0.00013457]
[1646620897109,0.15948456,38157.0,38154.0,0.00013457]
[1646620898154,0.15,38156.0,38154.0,0.00013457]
[1646620898357,0.15,38156.0,38149.0,0.00019844]
[1646620898553,0.15948456,38157.0,38149.0,0.00019844]
[1646620898755,0.15,38153.0,38149.0,0.00019844]
[1646620899154,0.15,38153.0,38149.0,0.00013424]
[1646620899352,0.15,38153.0,38149.0,0.00019844]
[1646620899554,0.15,38155.0,38152.0,0.05933718]
[1646620899755,0.1131,38159.0,38153.0,0.3]
[1646620900357,0.1131,38159.0,38149.0,0.00013424]
[1646620900557,0.1131,38159.0,38149.0,0.29519844]
[1646620900558,0.32027302,38158.0,38149.0,0.29519844]
[1646620900856,0.15,38156.0,38149.0,0.29519844]
[1646620901058,0.16127842,38152.0,38149.0,6.42e-05]
[1646620901458,0.16127842,38152.0,38146.0,0.35]
[1646620901661,0.16127842,38152.0,38149.0,6.42e-05]
[1646620902109,0.16127842,38152.0,38149.0,0.3000642]
[1646620902314,0.16127842,38152.0,38149.0,0.3500642]